bitfinex/quotes_SOLUSD_20250929
["timestamp","ask_amount","ask_price","bid_price","bid_amount"]
[1759132126942,0.2,209.69,209.68,37.39]
[1759132127320,0.2,209.69,209.68,42.15917207]
[1759132129232,0.2,209.69,209.68,5.41917207]
[1759132129427,0.2,209.69,209.68,42.13917207]
[1759132130134,0.2,209.69,209.68,5.41917207]
[1759132130333,0.2,209.69,209.68,42.13917207]
[1759132131155,0.2,209.69,209.68,5.41917207]
[1759132131447,0.2,209.69,209.68,42.13917207]
[1759132131745,0.2,209.69,209.68,42.11917207]
[1759132132550,0.2,209.69,209.68,5.41917207]
[1759132132737,0.2,209.69,209.68,42.11917207]
[1759132133130,0.2,209.69,209.68,5.41917207]
[1759132133649,0.2,209.69,209.68,42.11917207]
[1759132133849,0.2,209.69,209.68,5.41917207]
[1759132134051,0.2,209.69,209.68,42.11917207]
[1759132136248,0.2,209.69,209.68,42.09917207]
[1759132136428,0.2,209.69,209.68,44.01144648]
[1759132136633,0.2,209.69,209.68,7.33144648]
[1759132136925,0.2,209.69,209.68,44.01144648]
[1759132137438,0.2,209.69,209.68,7.33144648]
[1759132137755,0.2,209.69,209.68,44.01144648]
[1759132138340,0.2,209.69,209.68,44.03144648]
[1759132138540,0.2,209.69,209.68,7.33144648]
[1759132138740,0.2,209.69,209.68,44.03144648]
[1759132140052,0.2,209.69,209.68,7.33144648]
[1759132140347,0.2,209.69,209.68,44.03144648]
[1759132141028,0.2,209.69,209.68,4.76917207]
[1759132141228,0.67,209.69,209.68,4.76917207]
[1759132141429,0.67,209.69,209.68,41.48917207]
[1759132142239,0.2,209.69,209.68,4.76917207]
[1759132142472,0.2,209.69,209.68,41.48917207]
[1759132143449,0.2,209.69,209.66,16.69369454]
[1759132143856,0.67,209.69,209.67,36.72]
[1759132144454,0.2,209.69,209.67,36.72]
[1759132144757,0.67,209.69,209.67,41.48925467]
[1759132146355,0.67,209.69,209.67,4.76925467]
[1759132146560,0.67,209.69,209.68,36.7]
[1759132147056,0.67,209.69,209.67,4.76925467]
[1759132147257,0.67,209.69,209.66,11.92406753]
[1759132147459,1.99859055,209.68,209.61,0.66]
[1759132147665,0.2,209.69,209.6,11.92713156]
[1759132147666,1.52859055,209.66,209.6,11.92713156]
[1759132147863,1.52859055,209.64,209.6,11.92713156]
[1759132148164,1.99859055,209.63,209.61,36.72]
[1759132148646,1.99859055,209.63,209.59,4.77122]
[1759132148848,0.47,209.63,209.61,36.72]
[1759132149057,1.52859055,209.62,209.59,4.77122]
[1759132149244,1.52859055,209.62,209.61,36.74]
[1759132149862,1.99859055,209.62,209.61,36.74]
[1759132150065,27.99859055,209.62,209.58,4.77125595]
[1759132150374,0.47,209.61,209.6,36.72]
[1759132150680,26.47,209.61,209.56,4.77168861]
[1759132150986,1.52859055,209.58,209.57,36.74]
[1759132152375,1.99859055,209.58,209.53,0.66]
[1759132152678,1.52859055,209.57,209.54,41.51235849]
[1759132152965,1.52859055,209.57,209.54,4.77235849]
[1759132153148,27.52859055,209.58,209.54,41.51235849]
[1759132153348,27.52859055,209.58,209.54,5.48235849]
[1759132153642,27.52859055,209.58,209.55,41.51209802]
[1759132154445,1.99859055,209.58,209.55,41.51209802]
[1759132154650,26.0,209.61,209.55,41.51209802]
[1759132154868,0.47,209.6,209.55,41.51209802]
[1759132155062,0.47,209.59,209.55,36.74]
[1759132155265,0.47,209.58,209.55,36.74]
[1759132155548,0.47,209.58,209.52,4.77280517]
[1759132155549,1.52859055,209.56,209.52,4.77280517]
[1759132155763,0.47,209.55,209.52,4.77280517]
[1759132155945,27.52859055,209.55,209.52,4.77280517]
[1759132156144,27.52859055,209.55,209.52,42.22280517]
[1759132156356,1.99859055,209.55,209.52,41.51280517]
[1759132156670,1.99859055,209.55,209.51,36.74]
[1759132157365,1.99859055,209.55,209.51,36.76]
[1759132157567,0.47,209.55,209.52,4.77281405]
[1759132157775,1.52859055,209.54,209.52,4.77281405]
[1759132160155,1.99859055,209.54,209.48,0.71]
[1759132160474,26.0,209.51,209.48,42.22371711]
[1759132160969,26.0,209.51,209.48,37.45]
[1759132161178,1.52859055,209.5,209.48,36.74]
[1759132162071,1.52859055,209.5,209.47,4.77393241]
[1759132162273,1.52859055,209.5,209.47,41.51393241]
[1759132162577,1.52859055,209.52,209.48,0.69]
[1759132163173,1.99859055,209.52,209.48,0.69]
[1759132163469,1.99859055,209.52,209.47,41.51393241]
[1759132163879,26.0,209.5,209.47,42.20393241]
[1759132164075,26.0,209.5,209.47,36.74]
[1759132164277,26.0,209.49,209.46,4.77415868]
[1759132164492,26.0,209.49,209.47,36.74]
[1759132165587,0.47,209.51,209.47,36.74]
[1759132165961,27.52859055,209.52,209.47,37.43]
[1759132166281,26.0,209.5,209.47,42.20388562]
[1759132166988,0.47,209.5,209.44,0.69]
[1759132167290,26.0,209.52,209.44,38.96048675]
[1759132167482,26.0,209.52,209.45,0.69]
[1759132167984,26.0,209.52,209.46,36.74]
[1759132168164,26.0,209.52,209.48,4.77372541]
[1759132168484,26.0,209.52,209.49,0.69]
[1759132168864,26.0,209.52,209.48,4.77372541]
[1759132169264,26.0,209.52,209.49,0.69]
[1759132170262,26.0,209.52,209.49,5.46343355]
[1759132172865,26.0,209.52,209.49,4.77343355]
[1759132173072,26.0,209.55,209.5,0.69]
[1759132173582,26.0,209.55,209.49,16.7071774]
[1759132173784,26.0,209.55,209.51,0.69]
[1759132174267,26.0,209.55,209.49,16.7071774]
[1759132174468,26.0,209.55,209.51,4.77304185]
[1759132174787,26.0,209.55,209.51,5.46304185]
[1759132175588,26.0,209.55,209.51,4.77304185]
[1759132175886,26.0,209.55,209.51,5.46304185]
[1759132177183,26.0,209.53,209.49,4.77327564]
[1759132177393,26.0,209.53,209.5,0.69]
[1759132177778,26.0,209.53,209.51,0.69]
[1759132178288,26.0,209.53,209.49,4.77327564]
[1759132178469,26.0,209.53,209.5,5.46313934]
[1759132178671,26.47,209.53,209.5,4.77313934]
[1759132178975,26.0,209.53,209.5,4.77313934]
[1759132179587,26.0,209.53,209.5,5.46313934]
[1759132181992,26.0,209.53,209.48,16.70803894]
[1759132182198,26.0,209.53,209.51,0.69]
[1759132182696,26.0,209.53,209.49,0.69]
[1759132182892,8.64073454,239.07,209.48,16.70803894]
[1759132182893,43.1400549,209.67,209.5,0.69]
[1759132183097,132.8,209.6,209.52,2.39069298]
[1759132183296,132.8,209.6,209.54,2.39069298]
[1759132183475,26.0,209.57,209.55,0.69]
[1759132184212,26.0,209.57,209.56,4.77190303]
[1759132185493,26.0,209.57,209.54,4.77215942]
[1759132185703,26.47,209.57,209.54,4.77215942]
[1759132186077,26.0,209.57,209.54,4.77215942]
[1759132186496,26.0,209.57,209.53,5.46258626]
[1759132186694,26.0,209.57,209.53,4.77258626]
[1759132186895,26.0,209.57,209.54,0.69]
[1759132187792,26.0,209.57,209.53,4.77258626]
[1759132187999,2.39069298,209.55,209.51,5.46304185]
[1759132188590,2.39069298,209.55,209.52,0.69]
[1759132188880,2.86069298,209.55,209.51,4.77304185]
[1759132189390,2.39069298,209.55,209.51,5.46304185]
[1759132189591,2.39069298,209.55,209.52,0.69]
[1759132189796,2.39069298,209.55,209.51,4.77304185]
[1759132190096,2.39069298,209.55,209.51,5.46304185]
[1759132191582,2.39069298,209.55,209.51,5.23604185]
[1759132191782,2.39069298,209.55,209.51,4.54604185]
[1759132192182,2.39069298,209.55,209.52,0.68]
[1759132192384,26.0,209.56,209.52,0.68]
[1759132192590,2.39069298,209.55,209.52,0.68]
[1759132193289,28.39069298,209.56,209.53,5.45258626]
[1759132193483,28.39069298,209.56,209.54,0.68]
[1759132194000,2.39069298,209.56,209.53,4.77258626]
[1759132194199,2.39069298,209.56,209.55,0.68]
[1759132194909,2.39069298,209.56,209.53,0.68]
[1759132195110,2.39069298,209.56,209.54,0.68]
[1759132195812,2.39069298,209.56,209.55,4.77213075]
[1759132201100,2.39069298,209.56,209.54,5.4523146]
[1759132201806,2.39069298,209.56,209.51,0.68]
[1759132201986,2.39069298,209.53,209.52,0.68]
[1759132202187,2.39069298,209.53,209.48,36.72]
[1759132202897,2.39069298,209.53,209.49,0.68]
[1759132203107,2.39069298,209.53,209.5,4.77326968]
[1759132203311,2.39069298,209.53,209.51,0.68]
[1759132203614,2.39069298,209.53,209.52,0.68]
[1759132205111,2.39069298,209.53,209.52,5.45281405]
[1759132205914,26.0,209.57,209.52,16.70484917]
[1759132206090,26.0,209.57,209.53,0.68]
[1759132206091,28.39069298,209.57,209.53,0.68]
[1759132206408,2.39069298,209.55,209.53,0.68]
[1759132207589,26.0,209.57,209.53,0.68]
[1759132207790,2.39069298,209.55,209.52,4.77281405]
[1759132207984,0.47,209.56,209.52,4.77281405]
[1759132207985,2.39069298,209.53,209.52,4.77281405]
[1759132208494,28.39069298,209.53,209.5,5.45326968]
[1759132208685,2.39069298,209.53,209.51,0.68]
[1759132209708,2.39069298,209.55,209.51,0.68]
[1759132209900,28.39069298,209.57,209.51,0.68]
[1759132210105,2.39069298,209.57,209.52,16.70484917]
[1759132210313,2.39069298,209.57,209.53,0.68]
[1759132211185,2.39069298,209.57,209.52,16.70484917]
[1759132211389,2.39069298,209.57,209.53,0.68]
[1759132211608,2.39069298,209.57,209.54,0.68]
[1759132211798,2.39069298,209.57,209.55,0.68]
[1759132211999,2.39069298,209.57,209.54,4.77235849]
[1759132212198,2.39069298,209.57,209.55,0.68]
[1759132212615,2.39069298,209.57,209.54,4.77235849]
[1759132212820,2.39069298,209.57,209.54,5.45235849]
[1759132213010,2.39069298,209.57,209.54,4.77235849]
[1759132213318,2.39069298,209.57,209.55,0.68]
[1759132213491,2.39069298,209.57,209.54,4.77235849]
[1759132213686,2.39069298,209.57,209.49,36.72]
[1759132213687,26.47,209.57,209.5,4.77326968]
[1759132213908,2.39069298,209.56,209.52,0.68]
[1759132214105,28.39069298,209.56,209.54,4.77235849]
[1759132214690,26.0,209.56,209.54,4.77235849]
[1759132214910,26.0,209.55,209.54,4.77235849]
[1759132215414,26.0,209.57,209.54,0.68]
[1759132215715,28.39069298,209.57,209.54,0.68]
[1759132216813,28.39069298,209.57,209.54,4.77228647]
[1759132217016,26.0,209.55,209.53,4.77257681]
[1759132217395,28.39069298,209.55,209.51,4.77304185]
[1759132217603,26.0,209.52,209.51,4.77304185]
[1759132218214,2.86069298,209.55,209.51,5.45304185]
[1759132218616,2.39069298,209.55,209.51,5.45304185]
[1759132218920,26.0,209.52,209.46,0.68]
[1759132219115,2.39069298,209.49,209.46,0.68]
[1759132219417,2.39069298,209.49,209.47,0.68]
[1759132219620,2.39069298,209.49,209.45,4.77440916]
[1759132219799,2.39069298,209.49,209.46,0.7]
[1759132220000,2.39069298,209.49,209.44,11.93607237]
[1759132220001,2.39069298,209.49,209.47,0.7]
[1759132220521,26.0,209.52,209.45,11.93602291]
[1759132220820,2.39069298,209.5,209.48,0.7]
[1759132221325,2.39069298,209.5,209.48,0.67]
[1759132221505,2.39069298,209.51,209.49,0.67]
[1759132221900,2.39069298,209.51,209.5,0.67]
[1759132222219,2.39069298,209.51,209.5,4.77326968]
[1759132222415,2.39069298,209.51,209.5,5.44326968]
[1759132223516,28.39069298,209.53,209.5,5.44326968]
[1759132223715,28.39069298,209.53,209.51,0.67]
[1759132226308,28.39069298,209.53,209.49,0.67]
[1759132226503,2.39069298,209.53,209.49,0.67]
[1759132227518,2.39069298,209.53,209.47,11.93480282]
[1759132227813,2.39069298,209.53,209.5,0.67]
[1759132228728,2.39069298,209.53,209.51,4.77304185]
[1759132229125,28.39069298,209.53,209.51,4.77304185]
[1759132230332,27.53008562,209.53,209.51,4.77304185]
[1759132230928,27.53008562,209.53,209.5,5.44325646]
[1759132231310,27.53008562,209.53,209.51,0.67]
[1759132231627,27.53008562,209.53,209.5,4.77325646]
[1759132231930,27.53008562,209.53,209.5,5.44325646]
[1759132233830,26.0,209.53,209.5,5.44325646]
[1759132234008,27.53008562,209.53,209.5,5.44325646]
[1759132236423,26.0,209.53,209.47,11.93480282]
[1759132236625,27.53008562,209.53,209.51,0.67]
[1759132236816,26.47,209.52,209.46,5.44418122]
[1759132237129,1.53008562,209.49,209.46,5.44418122]
[1759132237819,1.53008562,209.49,209.46,4.77418122]
[1759132238124,1.53008562,209.49,209.46,5.44418122]
[1759132238800,1.53008562,209.49,209.46,4.77418122]
[1759132239725,26.0,209.48,209.45,0.67]
[1759132239921,2.00008562,209.49,209.45,0.67]
[1759132240323,2.00008562,209.49,209.45,5.44436504]
[1759132240621,1.53008562,209.49,209.45,5.44436504]
[1759132240931,1.53008562,209.49,209.46,0.67]
[1759132241313,26.0,209.48,209.46,0.67]
[1759132241513,1.53008562,209.49,209.47,0.67]
[1759132241909,1.53008562,209.49,209.45,5.44436504]
[1759132242114,26.0,209.48,209.46,0.67]
[1759132242316,26.0,209.48,209.45,4.77436504]
[1759132242517,26.0,209.48,209.46,0.67]
[1759132243234,26.0,209.48,209.45,4.77436504]
[1759132243407,26.0,209.48,209.45,5.44436504]
[1759132244022,26.0,209.48,209.46,0.67]
[1759132244434,26.0,209.5,209.46,0.67]
[1759132244631,1.53008562,209.49,209.46,0.67]
[1759132246933,1.53008562,209.49,209.45,4.77424545]
[1759132247236,1.53008562,209.49,209.46,0.67]
[1759132251445,1.53008562,209.49,209.46,5.44416311]
[1759132251835,1.53008562,209.49,209.47,0.68]
[1759132252138,27.53008562,209.49,209.47,0.68]
[1759132252845,1.53008562,209.49,209.46,4.77416311]
[1759132253028,1.53008562,209.49,209.43,12.61711208]
[1759132253231,1.53008562,209.47,209.44,4.77463712]
[1759132253629,1.53008562,209.47,209.45,4.77432625]
[1759132253829,27.53008562,209.47,209.44,5.45459869]
[1759132254734,26.0,209.46,209.44,5.45459869]
[1759132254935,1.53008562,209.45,209.42,0.68]
[1759132255729,26.0,209.43,209.42,0.68]
[1759132257550,1.53008562,209.45,209.42,5.45509311]
[1759132257727,1.53008562,209.45,209.43,0.68]
[1759132258735,1.53008562,209.45,209.44,0.68]
[1759132259642,27.53008562,209.45,209.44,0.68]
[1759132260645,27.53008562,209.45,209.43,4.77485927]
[1759132260858,27.53008562,209.45,209.44,0.68]
[1759132261052,27.53008562,209.45,209.42,0.68]
[1759132261365,27.53008562,209.45,209.39,16.71510079]
[1759132261553,27.53008562,209.45,209.42,0.68]
[1759132262241,1.53008562,209.45,209.42,0.68]
[1759132262735,26.0,209.47,209.43,0.68]
[1759132263044,26.0,209.47,209.44,5.45453192]
[1759132263249,26.0,209.47,209.45,0.68]
[1759132263445,26.0,209.47,209.46,0.68]
[1759132264237,1.53008562,209.54,209.46,2.21008562]
[1759132264437,1.53008562,209.54,209.47,0.68]
[1759132264638,1.53008562,209.56,209.48,1.53008562]
[1759132264844,1.53008562,209.56,209.49,0.68]
[1759132265048,27.53008562,209.56,209.5,16.7064439]
[1759132265235,26.0,209.56,209.51,0.68]
[1759132265731,1.53008562,209.58,209.51,0.68]
[1759132265946,36.72,209.6,209.51,0.68]
[1759132265947,41.46637232,209.6,209.51,0.68]
[1759132266159,26.0,209.57,209.51,0.68]
[1759132267150,26.0,209.57,209.52,16.70484917]
[1759132267466,26.0,209.59,209.53,2.21008562]
[1759132267666,26.0,209.59,209.54,0.68]
[1759132268347,2.00008562,209.59,209.54,0.68]
[1759132268554,1.53008562,209.59,209.55,0.68]
[1759132268738,1.53008562,209.6,209.55,0.68]
[1759132268938,0.47,209.6,209.55,0.68]
[1759132269254,26.0,209.59,209.57,4.77167533]
[1759132269453,26.0,209.59,209.56,5.45190098]
[1759132269655,26.0,209.59,209.56,4.77190098]
[1759132269969,26.0,209.59,209.56,5.45190098]
[1759132270563,27.53008562,209.59,209.56,5.45190098]
[1759132271138,2.00008562,209.59,209.54,0.68]
[1759132271563,2.00008562,209.59,209.53,4.77258626]
[1759132271564,1.53008562,209.59,209.55,0.68]
[1759132272968,0.47,209.58,209.53,4.77258626]
[1759132273265,0.47,209.58,209.53,5.45258626]
[1759132273468,0.47,209.58,209.54,0.68]
[1759132273671,1.53008562,209.59,209.54,0.68]
[1759132273959,1.53008562,209.57,209.54,0.68]
[1759132274672,1.53008562,209.57,209.54,5.45225603]
[1759132276268,26.0,209.59,209.55,0.68]
[1759132276568,1.53008562,209.57,209.53,0.68]
[1759132276764,1.53008562,209.57,209.54,0.68]
[1759132277585,26.47,209.59,209.54,0.68]
[1759132278464,26.47,209.59,209.54,5.45215758]
[1759132283071,26.0,209.57,209.54,5.45215758]
[1759132283855,0.47,209.58,209.54,4.77215758]
[1759132284055,0.47,209.58,209.54,5.46215758]
[1759132284378,31.24126398,209.59,209.54,5.46215758]
[1759132284557,26.47,209.59,209.54,5.46215758]
[1759132286371,26.0,209.59,209.54,5.46215758]
[1759132286579,26.47,209.59,209.54,5.46215758]
[1759132286767,0.47,209.58,209.54,5.46215758]
[1759132286965,0.47,209.58,209.54,4.77215758]
[1759132287576,1.53008562,209.56,209.51,0.69]
[1759132287759,1.53008562,209.54,209.49,0.69]
[1759132287957,1.53008562,209.54,209.49,5.4634609]
[1759132287958,1.53008562,209.51,209.49,5.4634609]
[1759132288281,1.53008562,209.51,209.5,0.69]
[1759132288973,27.53008562,209.51,209.48,5.46366839]
[1759132289365,27.53008562,209.51,209.49,0.69]
[1759132290160,27.53008562,209.51,209.47,0.69]
[1759132290368,27.53008562,209.51,209.48,0.69]
[1759132290559,27.53008562,209.51,209.46,16.70929216]
[1759132290560,2.00008562,209.51,209.46,5.46418122]
[1759132290761,1.53008562,209.49,209.46,5.46418122]
[1759132290962,27.53008562,209.49,209.46,5.46418122]
[1759132291658,27.53008562,209.49,209.47,0.69]
[1759132292375,26.0,209.49,209.47,0.69]
[1759132292596,26.0,209.49,209.47,5.46387606]
[1759132294378,26.0,209.49,209.45,0.69]
[1759132294586,26.0,209.49,209.46,0.69]
[1759132296087,26.0,209.48,209.46,0.69]
[1759132296284,26.0,209.48,209.44,0.69]
[1759132296456,26.0,209.48,209.43,16.71155189]
[1759132296457,28.86149109,209.48,209.43,4.77486511]
[1759132296662,0.47,209.47,209.43,5.46486511]
[1759132297081,2.39149109,209.46,209.41,4.77515226]
[1759132297287,2.39149109,209.44,209.38,36.7]
[1759132297490,2.39149109,209.44,209.41,0.69]
[1759132298289,2.39149109,209.44,209.39,5.46577725]
[1759132298491,2.39149109,209.42,209.38,0.69]
[1759132298690,2.39149109,209.42,209.38,5.46587147]
[1759132298691,26.0,209.41,209.38,5.46587147]
[1759132299489,26.0,209.41,209.39,0.69]
[1759132299683,26.0,209.41,209.39,5.4657583]
[1759132299883,26.0,209.41,209.39,4.7757583]
[1759132301597,26.0,209.41,209.38,0.69]
[1759132301598,26.0,209.41,209.38,5.4659939]
[1759132302093,26.0,209.4,209.37,4.87620925]
[1759132302299,26.0,209.4,209.37,5.56620925]
[1759132302596,26.0,209.4,209.38,0.69]
[1759132302899,2.39149109,209.5,209.38,3.08149109]
[1759132303083,2.39149109,209.5,209.39,0.69]
[1759132303394,2.39149109,209.5,209.4,36.7]
[1759132303586,28.39149109,209.5,209.44,16.71122993]
[1759132303786,26.0,209.5,209.45,0.69]
[1759132304087,26.0,209.5,209.46,0.69]
[1759132304688,26.0,209.5,209.47,4.77395331]
[1759132305490,26.0,209.5,209.47,5.46395331]
[1759132307494,26.0,209.51,209.48,0.69]
[1759132307694,26.0,209.51,209.47,4.77395331]
[1759132307695,26.0,209.51,209.49,0.69]
[1759132308004,0.47,209.56,209.5,0.69]
[1759132308202,2.39149109,209.56,209.5,0.69]
[1759132308390,28.39149109,209.56,209.5,0.69]
[1759132308589,2.39149109,209.56,209.5,0.69]
[1759132309077,26.0,209.55,209.51,4.77304185]
[1759132309278,2.39149109,209.56,209.52,0.69]
[1759132309596,2.39149109,209.54,209.51,4.77304185]
[1759132309780,2.86149109,209.54,209.51,4.77304185]
[1759132309981,26.0,209.53,209.49,4.77349754]
[1759132310387,26.0,209.53,209.49,5.46349754]
[1759132310606,2.86149109,209.54,209.49,5.46349754]
[1759132310806,2.39149109,209.52,209.48,41.47369436]
[1759132310993,0.47,209.52,209.48,41.47369436]
[1759132311197,26.0,209.51,209.48,41.47369436]
[1759132311698,26.0,209.51,209.48,4.77369436]
[1759132312804,2.86149109,209.52,209.48,4.77369436]
[1759132313103,26.0,209.5,209.48,4.77369436]
[1759132313692,26.0,209.49,209.46,4.77399895]
[1759132314092,26.47,209.49,209.44,5.43449588]
[1759132314297,26.0,209.49,209.45,0.66]
[1759132315328,0.47,209.49,209.44,4.77449588]
[1759132315501,26.0,209.47,209.44,5.43449588]
[1759132315813,2.39149109,209.46,209.44,4.77449588]
[1759132316918,2.39149109,209.46,209.42,4.77509311]
[1759132317112,2.39149109,209.46,209.42,5.43509311]
[1759132317325,2.39149109,209.46,209.43,0.66]
[1759132317525,2.39149109,209.46,209.4,5.43535924]
[1759132317697,26.0,209.43,209.38,42.13600534]
[1759132318015,26.0,209.43,209.39,0.66]
[1759132318206,2.39149109,209.44,209.4,0.66]
[1759132318716,2.39149109,209.44,209.38,16.71601871]
[1759132318717,2.39149109,209.44,209.42,4.77509311]
[1759132320213,26.0,209.45,209.42,4.77509311]
[1759132320421,26.0,209.44,209.42,4.77509311]
[1759132320814,26.0,209.44,209.41,4.77532114]
[1759132321121,26.0,209.45,209.41,5.43532114]
[1759132321303,26.0,209.45,209.41,4.77532114]
[1759132321506,26.0,209.45,209.42,0.66]
[1759132322520,2.39149109,209.44,209.42,5.4349662]
[1759132324215,26.0,209.45,209.42,5.4349662]
[1759132324216,26.29529835,209.54,209.43,0.66]
[1759132324419,28.39149109,209.46,209.43,0.66]
[1759132324608,28.39149109,209.46,209.44,4.77463712]
[1759132324799,28.39149109,209.46,209.44,5.43463712]
[1759132325001,28.39149109,209.46,209.44,4.77463712]
[1759132325704,28.39149109,209.46,209.44,5.43463712]
[1759132326000,2.39149109,209.49,209.45,0.66]
[1759132326207,2.39149109,209.51,209.45,0.66]
[1759132326609,28.39149109,209.51,209.46,16.70963428]
[1759132326810,26.0,209.51,209.47,0.66]
[1759132327017,26.0,209.51,209.46,16.70963428]
[1759132327018,26.0,209.51,209.48,0.66]
[1759132327514,26.0,209.51,209.49,0.66]
[1759132328022,26.0,209.51,209.46,16.70963428]
[1759132328230,26.0,209.51,209.48,4.77372541]
[1759132328530,28.39149109,209.53,209.48,5.43372541]
[1759132328728,28.39149109,209.53,209.48,4.77372541]
[1759132328944,2.39149109,209.51,209.46,4.77396375]
[1759132329227,2.39149109,209.51,209.47,0.66]
[1759132329434,2.39149109,209.49,209.46,4.77396375]
[1759132329608,2.39149109,209.49,209.46,5.43396375]
[1759132329803,2.39149109,209.49,209.46,4.77396375]
[1759132330314,2.39149109,209.49,209.46,5.43396375]
[1759132330631,2.39149109,209.5,209.46,5.43396375]
[1759132331731,28.39149109,209.48,209.45,4.77440916]
[1759132332110,28.39149109,209.48,209.46,0.66]
[1759132332111,26.0,209.48,209.46,0.66]
[1759132332312,2.86149109,209.48,209.45,4.77440916]
[1759132332906,2.39149109,209.46,209.44,4.77461067]
[1759132333521,2.39149109,209.46,209.44,5.43461067]
[1759132334436,2.39149109,209.46,209.41,5.43532114]
[1759132334630,26.0,209.48,209.42,0.66]
[1759132334811,2.39149109,209.47,209.42,0.66]
[1759132335925,2.39149109,209.47,209.41,16.71362399]
[1759132336135,2.86149109,209.47,209.41,17.38362399]
[1759132336305,2.39149109,209.45,209.41,17.38362399]
[1759132336611,2.39149109,209.45,209.41,5.44532114]
[1759132336612,26.0,209.44,209.41,5.44532114]
[1759132337729,28.39149109,209.43,209.39,5.44558923]
[1759132337939,26.0,209.42,209.4,0.67]
[1759132338815,26.0,209.42,209.4,5.44543265]
[1759132339627,26.0,209.43,209.4,5.44543265]
[1759132339810,2.39149109,209.42,209.4,5.44543265]
[1759132340628,28.39149109,209.44,209.41,0.67]
[1759132341416,2.39149109,209.44,209.41,0.67]
[1759132341739,28.39149109,209.46,209.41,0.67]
[1759132342740,28.39149109,209.46,209.42,4.77509311]
[1759132342936,28.39149109,209.46,209.43,0.68]
[1759132343719,28.39149109,209.46,209.42,4.77509311]
[1759132343934,28.39149109,209.46,209.42,5.45509311]
[1759132344240,28.39149109,209.46,209.43,0.68]
[1759132344828,28.39149109,209.46,209.44,5.45453929]
[1759132345024,133.27,209.51,209.44,4.77453929]
[1759132345236,2.39149109,209.49,209.45,0.68]
[1759132345432,2.39149109,209.49,209.44,4.77453929]
[1759132345643,26.0,209.48,209.46,0.68]
[1759132345939,26.0,209.48,209.44,4.77453929]
[1759132346138,2.39149109,209.47,209.44,5.45453929]
[1759132346337,2.39149109,209.47,209.44,4.77453929]
[1759132346644,2.39149109,209.47,209.45,0.68]
[1759132346847,2.39149109,209.47,209.43,11.93708026]
[1759132347044,2.39149109,209.47,209.45,0.68]
[1759132348051,2.39149109,209.47,209.43,11.93708026]
[1759132348349,2.39149109,209.52,209.46,0.68]
[1759132348540,28.39149109,209.52,209.46,0.68]
[1759132348946,28.39149109,209.52,209.47,16.70883658]
[1759132349450,28.39149109,209.52,209.48,0.68]
[1759132349637,28.39149109,209.52,209.49,0.68]
[1759132350245,28.39149109,209.52,209.5,4.77326968]
[1759132350748,28.86149109,209.52,209.48,4.77372541]
[1759132350953,26.0,209.49,209.48,4.77372541]
[1759132351132,2.39149109,209.5,209.48,4.77372541]
[1759132351333,28.39149109,209.52,209.49,0.68]
[1759132351948,28.39149109,209.52,209.48,4.77372541]
[1759132352150,28.86149109,209.52,209.48,4.77372541]
[1759132352348,28.00028669,209.52,209.48,4.77372541]
[1759132352549,28.00028669,209.52,209.48,5.45372541]
[1759132356237,4.77239162,209.54,209.48,4.77372541]
[1759132356238,1.53028669,209.5,209.48,4.77372541]
[1759132356654,1.53028669,209.5,209.47,4.77395331]
[1759132356834,1.53028669,209.5,209.47,5.45395331]
[1759132358538,1.53028669,209.5,209.48,0.68]
[1759132359339,27.53028669,209.5,209.47,16.70883658]
[1759132359540,27.53028669,209.5,209.47,17.38883658]
[1759132359948,26.0,209.49,209.47,4.77395331]
[1759132360185,26.0,209.49,209.46,4.77418122]
[1759132360540,1.53028669,209.48,209.46,5.45418122]
[1759132361559,1.53028669,209.48,209.44,11.93628422]